bitfinex/quotes_BTCUSD_20220101
["timestamp","ask_amount","ask_price","bid_price","bid_amount"]
[1641050484080,0.00228934,46970.0,46969.0,0.51442345]
[1641050484480,0.00228934,46970.0,46969.0,0.71442345]
[1641050484880,0.00228934,46970.0,46969.0,0.71363867]
[1641050485680,0.00228934,46970.0,46969.0,0.73227687]
[1641050485880,0.00228934,46970.0,46969.0,0.71139139]
[1641050486481,0.00228934,46970.0,46969.0,1.43602534]
[1641050486682,0.00228934,46970.0,46969.0,1.45588126]
[1641050486882,0.00228934,46970.0,46969.0,1.43724306]
[1641050487283,0.00228934,46970.0,46969.0,0.71260911]
[1641050487747,0.00228934,46970.0,46969.0,1.43724306]
[1641050488346,0.00228934,46970.0,46969.0,1.45856135]
[1641050488646,0.00228934,46970.0,46969.0,1.75268751]
[1641050488846,0.00228934,46970.0,46969.0,1.77403464]
[1641050489348,0.00228934,46970.0,46969.0,0.93017332]
[1641050490347,0.00228934,46970.0,46969.0,0.95089315]
[1641050490549,0.00228934,46970.0,46969.0,0.92954602]
[1641050490750,0.00228934,46970.0,46969.0,0.94917976]
[1641050491583,0.00228934,46970.0,46969.0,0.90882619]
[1641050491786,0.00228934,46970.0,46969.0,0.92736978]
[1641050492784,0.00228934,46970.0,46969.0,0.94645654]
[1641050493586,0.00228934,46970.0,46969.0,0.90882619]
[1641050493786,0.00228934,46970.0,46969.0,0.93026466]
[1641050494585,0.00228934,46970.0,46969.0,0.90882619]
[1641050494786,0.00228934,46970.0,46969.0,0.93049671]
[1641050495848,0.00228934,46970.0,46969.0,0.9499718]
[1641050496050,0.00228934,46970.0,46969.0,0.92830128]
[1641050496851,0.00670365,46972.0,46971.0,0.259423]
[1641050497051,0.0005,46975.0,46971.0,0.16994719]
[1641050497251,0.0005,46975.0,46974.0,0.34792619]
[1641050497550,0.0005,46975.0,46974.0,0.49042619]
[1641050498150,0.0005,46975.0,46974.0,0.70649919]
[1641050498789,0.0005,46975.0,46974.0,0.9271065]
[1641050498997,0.0542,46977.0,46975.0,0.25]
[1641050499195,0.0001,46980.0,46979.0,0.0543]
[1641050499490,0.0001,46980.0,46979.0,0.78171339]
[1641050499692,0.009321,46983.0,46981.0,0.059334]
[1641050499891,0.009321,46983.0,46982.0,1.17643119]
[1641050500091,0.009321,46983.0,46982.0,1.27643119]
[1641050500296,0.0004,46983.0,46982.0,1.27643119]
[1641050500491,0.0004,46983.0,46982.0,1.49250419]
[1641050500893,0.0004,46983.0,46982.0,1.51443478]
[1641050501894,0.0004,46983.0,46982.0,1.534429]
[1641050502094,0.0004,46983.0,46982.0,1.51249841]
[1641050502928,0.0004,46983.0,46982.0,1.53304341]
[1641050503733,0.0004,46983.0,46982.0,1.29250419]
[1641050503930,0.0004,46983.0,46982.0,1.31271117]
[1641050504135,0.0004,46983.0,46982.0,1.31500117]
[1641050504832,0.0004,46983.0,46982.0,1.2340433]
[1641050505030,0.0004,46983.0,46982.0,1.21383632]
[1641050505833,0.0004,46983.0,46982.0,1.01926143]
[1641050506034,0.0004,46983.0,46982.0,1.0002193]
[1641050506980,0.0004,46983.0,46982.0,1.02066705]
[1641050507179,0.0004,46983.0,46982.0,0.99916894]
[1641050507980,0.0004,46983.0,46982.0,1.01917466]
[1641050508179,0.0004,46983.0,46982.0,1.72398828]
[1641050508780,0.0004,46983.0,46982.0,0.99872691]
[1641050508982,0.0004,46983.0,46982.0,1.2957509]
[1641050509181,0.0004,46983.0,46982.0,1.27574518]
[1641050510058,0.0004,46983.0,46982.0,1.29493657]
[1641050510247,0.0004,46983.0,46982.0,1.27354042]
[1641050510947,0.0004,46983.0,46982.0,0.99791258]
[1641050511150,0.0004,46983.0,46982.0,1.22851964]
[1641050511348,0.0004,46983.0,46982.0,1.20932825]
[1641050512048,0.0004,46983.0,46982.0,1.50349287]
[1641050512248,0.0004,46983.0,46982.0,1.48288581]
[1641050512849,0.0004,46983.0,46982.0,2.82101003]
[1641050513048,0.00159327,46983.0,46982.0,2.84045107]
[1641050513248,0.00159327,46983.0,46982.0,2.80231981]
[1641050513450,0.00159327,46983.0,46982.0,2.3106645]
[1641050513649,0.00159327,46983.0,46982.0,1.46419559]
[1641050514091,0.00159327,46983.0,46982.0,1.48535406]
[1641050514689,0.00159327,46983.0,46982.0,1.43105406]
[1641050515088,0.00159327,46983.0,46982.0,1.45097753]
[1641050515289,0.00159327,46983.0,46982.0,2.76794566]
[1641050516089,0.00159327,46983.0,46982.0,2.78747366]
[1641050516292,0.00159327,46983.0,46982.0,2.76755019]
[1641050516694,0.00159327,46983.0,46982.0,2.49207579]
[1641050517094,0.00159327,46983.0,46982.0,2.51234037]
[1641050517292,0.00159327,46983.0,46982.0,2.49281237]
[1641050517545,0.00159327,46983.0,46982.0,2.59281237]
[1641050517738,0.00159327,46983.0,46982.0,1.74634346]
[1641050518738,0.00159327,46983.0,46982.0,1.76547716]
[1641050518941,0.00159327,46983.0,46982.0,1.74521258]
[1641050519139,0.00159327,46983.0,46982.0,1.74750715]
[1641050519353,0.00159327,46983.0,46982.0,1.91214358]
[1641050519541,0.00159327,46983.0,46982.0,1.57152558]
[1641050519738,0.00159327,46983.0,46982.0,1.91217558]
[1641050519940,0.00159327,46983.0,46982.0,1.42051789]
[1641050520141,0.00159327,46983.0,46982.0,0.23371827]
[1641050520743,0.00159327,46983.0,46982.0,0.25308313]
[1641050520943,0.00159327,46983.0,46982.0,0.23165486]
[1641050521387,0.00159327,46983.0,46982.0,0.21229]
[1641050533328,0.00159327,46983.0,46982.0,0.20729]
[1641050534130,0.00159327,46983.0,46982.0,0.54794]
[1641050535231,0.00159327,46983.0,46982.0,0.22582178]
[1641050536882,0.00159327,46983.0,46982.0,0.20729]
[1641050537882,0.34224327,46983.0,46982.0,0.20729]
[1641050538683,0.34280437,46983.0,46982.0,0.20729]
[1641050546084,0.00215437,46983.0,46982.0,0.20729]
[1641050547087,0.00215437,46983.0,46982.0,0.21460319]
[1641050553283,0.00215437,46983.0,46982.0,0.49089962]
[1641050553485,0.00215437,46983.0,46982.0,0.83154962]
[1641050554280,0.00215437,46983.0,46982.0,0.84973645]
[1641050555235,0.00215437,46983.0,46982.0,0.87106159]
[1641050555540,0.00215437,46983.0,46982.0,0.57657833]
[1641050555934,0.00215437,46983.0,46982.0,1.30192586]
[1641050556135,0.00215437,46983.0,46982.0,0.57657833]
[1641050556335,0.00215437,46983.0,46982.0,0.59547829]
[1641050556535,0.00215437,46983.0,46982.0,0.85066314]
[1641050557337,0.00215437,46983.0,46982.0,0.8725611]
[1641050557536,0.00215437,46983.0,46982.0,0.85366114]
[1641050557735,0.00215437,46983.0,46982.0,0.57715115]
[1641050558337,0.00215437,46983.0,46982.0,0.59617737]
[1641050558539,0.00215437,46983.0,46982.0,0.57427941]
[1641050558788,0.00215437,46983.0,46982.0,0.61677941]
[1641050559390,0.00215437,46983.0,46982.0,0.63816402]
[1641050559589,0.00215437,46983.0,46982.0,0.6191378]
[1641050559791,0.00215437,46983.0,46982.0,0.8940285]
[1641050559992,0.00215437,46983.0,46982.0,0.6191378]
[1641050560392,0.00215437,46983.0,46982.0,0.6393319]
[1641050560595,0.00215437,46983.0,46982.0,0.89342509]
[1641050561293,0.00215437,46983.0,46982.0,0.913949]
[1641050561492,0.00215437,46983.0,46982.0,0.8937549]
[1641050562295,0.00215437,46983.0,46982.0,0.91291942]
[1641050562535,0.00215437,46983.0,46982.0,0.89239551]
[1641050562730,0.00215437,46983.0,46982.0,1.61774304]
[1641050563331,0.00215437,46983.0,46982.0,1.93862035]
[1641050563535,0.00215437,46983.0,46982.0,1.64397803]
[1641050563929,0.00215437,46983.0,46982.0,0.9186305]
[1641050564136,0.00215437,46983.0,46982.0,2.50416935]
[1641050564330,0.0003,46984.0,46982.0,2.50416935]
[1641050564530,0.0003,46984.0,46983.0,0.26660919]
[1641050564830,0.0004,46985.0,46983.0,0.31031496]
[1641050565031,0.0004,46985.0,46984.0,0.540635]
[1641050565231,0.0004,46985.0,46984.0,0.59044819]
[1641050565430,0.0004,46985.0,46984.0,0.69044819]
[1641050565630,0.0004,46985.0,46984.0,1.42930488]
[1641050566479,0.0004,46985.0,46984.0,1.44936693]
[1641050567284,0.0004,46985.0,46984.0,1.46736725]
[1641050567481,0.0004,46985.0,46984.0,1.4473052]
[1641050568381,0.0004,46985.0,46984.0,1.46876061]
[1641050568583,0.0004,46985.0,46984.0,1.45076029]
[1641050569381,0.0004,46985.0,46984.0,1.46949752]
[1641050569580,0.0004,46985.0,46984.0,1.44804211]
[1641050570334,0.0004,46985.0,46984.0,1.46663083]
[1641050570733,0.0004,46985.0,46984.0,1.2478936]
[1641050571138,0.0004,46985.0,46984.0,0.9299718]
[1641050571433,0.0004,46985.0,46984.0,0.94814794]
[1641050571633,0.0004,46985.0,46984.0,1.75584059]
[1641050572234,0.0004,46985.0,46984.0,0.49044819]
[1641050572433,0.0004,46985.0,46984.0,0.51079904]
[1641050572934,0.0004,46985.0,46984.0,1.20839935]
[1641050573333,0.0004,46985.0,46984.0,2.07361697]
[1641050573807,0.0004,46985.0,46984.0,1.33486689]
[1641050574006,0.0004,46985.0,46984.0,0.91138308]
[1641050574406,0.0004,46985.0,46984.0,0.93098103]
[1641050575507,0.0004,46985.0,46984.0,0.95095847]
[1641050575708,0.0004,46985.0,46984.0,1.7759664]
[1641050576508,0.0004,46985.0,46984.0,1.79782393]
[1641050577210,0.0004,46985.0,46984.0,1.75598896]
[1641050577410,0.0004,46985.0,46984.0,1.77470845]
[1641050577836,0.0004,46985.0,46984.0,1.23225757]
[1641050578235,0.0004,46985.0,46984.0,0.50916768]
[1641050579035,0.0004,46985.0,46984.0,0.52796638]
[1641050579237,0.0004,46985.0,46984.0,0.50924689]
[1641050579436,0.0004,46985.0,46984.0,1.2519174]
[1641050579635,0.0004,46985.0,46984.0,1.2331187]
[1641050581038,0.0004,46985.0,46984.0,0.38736684]
[1641050581287,0.0004,46985.0,46984.0,0.36764585]
[1641050581495,0.0004,46985.0,46984.0,0.38806082]
[1641050581689,0.0004,46985.0,46984.0,0.36836316]
[1641050582088,0.0004,46985.0,46984.0,0.02772816]
[1641050582989,0.0004,46985.0,46984.0,0.04683161]
[1641050583188,0.0004,46985.0,46984.0,0.02641664]
[1641050583591,0.0004,46985.0,46984.0,0.00731319]
[1641050584390,0.00159321,46985.0,46984.0,0.00731319]
[1641050589096,0.00159321,46985.0,46984.0,0.04981319]
[1641050602648,0.00159321,46985.0,46984.0,1.48041341]
[1641050603049,0.00159321,46985.0,46984.0,0.04981319]
[1641050603652,0.00159321,46985.0,46984.0,0.0680096]
[1641050603890,0.00159321,46985.0,46984.0,1.49860982]
[1641050604289,0.00159321,46985.0,46984.0,0.0680096]
[1641050604690,0.00159321,46985.0,46984.0,0.67274902]
[1641050604892,0.00159321,46985.0,46984.0,0.63580753]
[1641050605489,0.00159321,46985.0,46984.0,1.482641]
[1641050605689,0.00159321,46985.0,46984.0,1.5032868]
[1641050605891,0.00159321,46985.0,46984.0,0.07045899]
[1641050606892,0.00159321,46985.0,46984.0,0.04981319]
[1641050609143,0.00159321,46985.0,46984.0,1.52901708]
[1641050609341,0.00159321,46985.0,46984.0,0.89664666]
[1641050609542,0.00159321,46985.0,46984.0,1.00499351]
[1641050609742,0.00159321,46985.0,46984.0,1.63736393]
[1641050610645,0.00159321,46985.0,46984.0,1.65835196]
[1641050610844,0.00159321,46985.0,46984.0,1.99900196]
[1641050611684,0.06233272,46988.0,46984.0,2.02074652]
[1641050611888,0.05992593,46988.0,46987.0,0.15]
[1641050612086,0.05089921,46988.0,46987.0,0.15]
[1641050612490,0.05089921,46988.0,46987.0,2.55275958]
[1641050612688,0.05089921,46988.0,46987.0,2.89340958]
[1641050612987,0.05089921,46988.0,46987.0,0.49065]
[1641050613188,0.05089921,46988.0,46987.0,0.15]
[1641050613790,0.05089921,46988.0,46987.0,0.16820371]
[1641050615060,0.05089921,46988.0,46987.0,0.15]
[1641050615448,0.0001,46988.0,46987.0,0.15]
[1641050615849,0.0001,46988.0,46987.0,0.56925809]
[1641050616048,0.0001,46988.0,46987.0,0.66925809]
[1641050616249,0.0001,46988.0,46987.0,1.00990809]
[1641050616649,0.0001,46988.0,46987.0,1.03177041]
[1641050616849,0.0001,46988.0,46987.0,2.5679879]
[1641050617347,0.0001,46988.0,46987.0,1.87860388]
[1641050617551,0.0001,46988.0,46987.0,1.03177041]
[1641050617747,0.0001,46988.0,46987.0,1.05269143]
[1641050617947,0.0001,46988.0,46987.0,1.03082911]
[1641050618148,0.0001,46988.0,46987.0,1.23082911]
[1641050618548,0.0001,46988.0,46987.0,2.7670294]
[1641050618785,0.0001,46988.0,46987.0,2.78683929]
[1641050618985,0.0001,46988.0,46987.0,2.4507848]
[1641050620387,0.0001,46988.0,46987.0,2.47209448]
[1641050620589,0.0001,46988.0,46987.0,2.72086218]
[1641050620788,0.0001,46988.0,46987.0,2.4737044]
[1641050620988,0.0001,46988.0,46987.0,3.31968101]
[1641050621199,0.0001,46988.0,46987.0,3.29837133]
[1641050621688,0.0001,46988.0,46987.0,2.47045208]
[1641050621889,0.0001,46988.0,46987.0,3.29623903]
[1641050622736,0.0001,46988.0,46987.0,3.31617917]
[1641050622934,0.0001,46988.0,46987.0,3.29812181]
[1641050623134,0.0001,46988.0,46987.0,2.45214206]
[1641050623735,0.0001,46988.0,46987.0,2.4704958]
[1641050623936,0.0001,46988.0,46987.0,2.45055566]
[1641050625340,0.0001,46988.0,46987.0,2.4688542]
[1641050625536,0.0001,46988.0,46987.0,2.45050046]
[1641050625736,0.0001,46988.0,46987.0,2.47146026]
[1641050625937,0.0001,46988.0,46987.0,2.45316172]
[1641050626805,0.0001,46988.0,46987.0,2.47204412]
[1641050627008,0.0001,46988.0,46987.0,2.45108432]
[1641050627806,0.0001,46988.0,46987.0,2.46988785]
[1641050628009,0.0001,46988.0,46987.0,2.45100545]
[1641050628409,0.0001,46988.0,46987.0,1.97302035]
[1641050628610,0.0001,46988.0,46987.0,1.44132035]
[1641050628809,0.0001,46988.0,46987.0,1.46105574]
[1641050629010,0.0001,46988.0,46987.0,1.44225221]
[1641050629411,0.0001,46988.0,46987.0,1.34225221]
[1641050629812,0.0001,46988.0,46987.0,1.46108571]
[1641050630638,0.0001,46988.0,46987.0,1.34225221]
[1641050630837,0.0001,46988.0,46987.0,1.34343104]
[1641050631438,0.0001,46988.0,46987.0,0.55406422]
[1641050631637,0.0001,46988.0,46987.0,0.21341422]
[1641050631839,0.0001,46988.0,46987.0,0.23442476]
[1641050632039,0.0001,46988.0,46987.0,0.21351054]
[1641050632841,0.0001,46988.0,46987.0,0.26351054]
[1641050633043,0.0001,46988.0,46987.0,0.2925]
[1641050633442,0.0001,46988.0,46987.0,1.01792349]
[1641050634794,0.0001,46988.0,46987.0,1.03781764]
[1641050635194,0.0001,46988.0,46987.0,0.31239415]
[1641050635393,0.0001,46988.0,46987.0,0.65304415]
[1641050635797,0.0001,46988.0,46987.0,0.67294339]
[1641050635995,0.0001,46988.0,46987.0,0.65304924]
[1641050636398,0.0001,46988.0,46987.0,1.37846089]
[1641050636597,0.0001,46988.0,46987.0,1.47846089]
[1641050636897,0.0001,46988.0,46987.0,1.4996455]
[1641050637097,0.0001,46988.0,46987.0,1.47974626]
[1641050637554,0.0001,46988.0,46987.0,0.65433461]
[1641050637944,0.0001,46988.0,46987.0,0.67392653]
[1641050638146,0.0001,46988.0,46987.0,0.55274192]
[1641050638349,0.0001,46988.0,46987.0,1.27815182]
[1641050638945,0.0001,46988.0,46987.0,0.57162637]
[1641050639146,0.0001,46988.0,46987.0,0.55203445]
[1641050639347,0.0001,46988.0,46987.0,0.65203445]
[1641050639948,0.0001,46988.0,46987.0,0.67121012]
[1641050640146,0.0001,46988.0,46987.0,0.65232567]
[1641050640348,0.0001,46988.0,46987.0,1.37773557]
[1641050640852,0.0001,46988.0,46987.0,1.39954822]
[1641050641047,0.0001,46988.0,46987.0,1.38037255]
[1641050641495,0.0001,46988.0,46987.0,0.65496265]
[1641050641894,0.0001,46988.0,46987.0,0.67688374]
[1641050642098,0.0001,46988.0,46987.0,0.65507109]
[1641050642695,0.0001,46988.0,46987.0,1.38048099]
[1641050642895,0.0001,46988.0,46987.0,1.40207944]
[1641050643097,0.0001,46988.0,46987.0,1.38015835]
[1641050643897,0.0001,46988.0,46987.0,1.39985519]
[1641050644097,0.0001,46988.0,46987.0,1.37825674]
[1641050644500,0.0001,46988.0,46987.0,0.65284684]
[1641050644898,0.0001,46988.0,46987.0,0.6714255]
[1641050645143,0.0001,46988.0,46987.0,0.65172866]
[1641050645942,0.0001,46988.0,46987.0,0.67341477]
[1641050646144,0.0001,46988.0,46987.0,0.65483611]
[1641050646943,0.0001,46988.0,46987.0,0.67560709]
[1641050647143,0.0001,46988.0,46987.0,0.55392098]
[1641050647543,0.0001,46988.0,46987.0,0.21327098]
[1641050647944,0.0001,46988.0,46987.0,0.23256698]
[1641050648145,0.0001,46988.0,46987.0,0.211796]
[1641050650301,0.0001,46988.0,46987.0,0.1925]
[1641050652306,0.0001,46988.0,46987.0,2.79198486]
[1641050652574,0.0001,46988.0,46987.0,3.13263486]
[1641050652966,0.0001,46988.0,46987.0,1.27991259]
[1641050653666,0.0001,46988.0,46987.0,0.55450269]
[1641050653971,0.0001,46988.0,46987.0,1.27991259]
[1641050654667,0.0001,46988.0,46987.0,0.57429447]
[1641050654867,0.0001,46988.0,46987.0,0.55294178]
[1641050655068,0.0001,46988.0,46987.0,1.29696782]
[1641050655266,0.0001,46988.0,46987.0,1.27717604]
[1641050655465,0.0001,46988.0,46987.0,0.55176614]
[1641050655867,0.0001,46988.0,46987.0,1.27717604]
[1641050656066,0.0001,46988.0,46987.0,1.29822763]
[1641050656300,0.0001,46988.0,46987.0,0.55420159]
[1641050657098,0.0001,46988.0,46987.0,0.57322402]
[1641050657300,0.0001,46988.0,46987.0,1.27758233]
[1641050657698,0.0001,46988.0,46987.0,0.60217243]
[1641050657899,0.0001,46988.0,46987.0,0.9254785]
[1641050658099,0.0001,46988.0,46987.0,0.67259622]
[1641050658299,0.0001,46988.0,46987.0,0.65357379]
[1641050659700,0.0001,46988.0,46987.0,0.6733313]
[1641050659899,0.0001,46988.0,46987.0,0.65290751]
[1641050660148,0.0001,46988.0,46987.0,0.67251568]
[1641050660345,0.0001,46988.0,46987.0,0.65275817]
[1641050661147,0.0001,46988.0,46987.0,0.6714926]
[1641050661446,0.0001,46988.0,46987.0,0.65188443]
[1641050661649,0.0001,46988.0,46987.0,2.24542044]
[1641050662045,0.0001,46988.0,46987.0,2.26673858]
[1641050662946,0.0001,46988.0,46987.0,2.36673858]
[1641050663148,0.0001,46988.0,46987.0,2.38669292]
[1641050663348,0.0001,46988.0,46987.0,2.34664035]
[1641050663813,0.0001,46988.0,46987.0,1.50033447]
[1641050664317,0.0001,46988.0,46987.0,1.4994783]
[1641050665715,0.0001,46988.0,46987.0,1.52034021]
[1641050666016,0.00159312,46989.0,46988.0,0.0049]
[1641050666218,0.00159312,46989.0,46988.0,0.47549213]
[1641050666616,0.00159312,46989.0,46988.0,1.32272226]
[1641050667218,0.00159312,46989.0,46988.0,1.34412147]
[1641050668237,0.00159312,46989.0,46988.0,1.3633866]
[1641050668437,0.00159312,46989.0,46988.0,1.34198739]
[1641050668837,0.00159312,46989.0,46988.0,2.18236492]
[1641050669239,0.00159312,46989.0,46988.0,2.20312261]
[1641050669542,0.00159312,46989.0,46988.0,2.18385748]
[1641050670142,0.00159312,46989.0,46988.0,2.20483994]
[1641050670342,0.00159312,46989.0,46988.0,2.18408225]
[1641050670744,0.00159312,46989.0,46988.0,1.34370472]
[1641050671142,0.00159312,46989.0,46988.0,1.36193573]
[1641050671404,0.00159312,46989.0,46988.0,1.34095327]
[1641050672206,0.00159312,46989.0,46988.0,1.07608329]
[1641050672403,0.00159312,46989.0,46988.0,0.95785228]
[1641050672604,0.00159312,46989.0,46988.0,0.21062215]
[1641050673206,0.00159312,46989.0,46988.0,0.23157778]
[1641050673408,0.00159312,46989.0,46988.0,0.93334323]
[1641050673907,0.00159312,46989.0,46988.0,0.212762]
[1641050674108,0.00159312,46989.0,46988.0,0.95400589]
[1641050674307,0.00159312,46989.0,46988.0,0.93305026]
[1641050674711,0.00159312,46989.0,46988.0,0.21232067]
[1641050675253,0.00159312,46989.0,46988.0,0.23286079]
[1641050675454,0.00159312,46989.0,46988.0,0.93307608]
[1641050675853,0.00159312,46989.0,46988.0,0.21234649]
[1641050676256,0.00159312,46989.0,46988.0,0.23230907]
[1641050676454,0.00159312,46989.0,46988.0,0.21176895]
[1641050676856,0.05972275,46991.0,46989.0,0.05]
[1641050677055,0.05972275,46991.0,46990.0,0.1925]
[1641050677259,0.05069512,46991.0,46990.0,0.1925]
[1641050690057,0.0003,46991.0,46990.0,0.1925]
[1641050690354,0.0003,46991.0,46990.0,1.95352246]
[1641050690551,0.0003,46991.0,46990.0,2.29417246]
[1641050691352,0.0003,46991.0,46990.0,2.31293702]
[1641050692353,0.16304432,46992.0,46991.0,0.112419]
[1641050692553,0.16304432,46992.0,46991.0,0.08513808]
[1641050694293,0.46912926,46992.0,46988.0,0.01828606]
[1641050694495,0.05321,46991.0,46988.0,0.01828606]
[1641050694692,0.053215,46990.0,46988.0,0.01828606]
[1641050694890,0.80378789,46989.0,46988.0,0.01828606]
[1641050695091,1.14443789,46989.0,46988.0,0.01828606]
[1641050695291,1.38561646,46989.0,46986.0,0.02777269]
[1641050695493,1.09818233,46989.0,46986.0,0.02777269]
[1641050695691,1.05651905,46987.0,46986.0,0.00896044]
[1641050695890,1.36678021,46987.0,46986.0,0.00896044]
[1641050696092,1.70743021,46987.0,46986.0,0.00896044]
[1641050696291,1.70743021,46987.0,46983.0,0.01873204]
[1641050696491,0.053216,46986.0,46982.0,0.25729]
[1641050698246,0.053216,46985.0,46982.0,0.25729]
[1641050701506,0.053216,46985.0,46982.0,0.97801959]
[1641050701903,0.05440922,46985.0,46983.0,0.053209]
[1641050703306,0.05440922,46985.0,46984.0,0.34065]
[1641050704504,0.05440922,46985.0,46983.0,0.05]
[1641050704706,0.05440922,46985.0,46982.0,0.27844547]
[1641050704904,0.05440922,46985.0,46982.0,0.33165647]
[1641050705152,0.05440922,46985.0,46984.0,0.01988054]
[1641050705752,0.05440922,46985.0,46982.0,0.310501]
[1641050706353,0.05440922,46985.0,46982.0,0.33067686]
[1641050707357,0.05440922,46985.0,46982.0,0.35203695]
[1641050707556,0.05440922,46985.0,46982.0,0.33186109]
[1641050707957,0.05440922,46985.0,46983.0,2.36029318]
[1641050708256,0.05440922,46985.0,46984.0,0.34065]
[1641050709498,0.00119322,46985.0,46984.0,0.36093175]
[1641050709794,0.00119322,46985.0,46984.0,0.50343175]
[1641050710495,0.00119322,46985.0,46984.0,0.67422389]
[1641050710797,0.00119322,46985.0,46984.0,0.50394214]
[1641050711114,0.00119322,46985.0,46984.0,2.20881971]
[1641050711497,0.00119322,46985.0,46984.0,1.47205729]
[1641050711697,0.00119322,46985.0,46984.0,1.45126515]
[1641050712547,0.00119322,46985.0,46984.0,1.4709159]
[1641050712749,0.00119322,46985.0,46984.0,1.45219623]
[1641050713154,0.00119322,46985.0,46984.0,1.65219623]
[1641050713349,0.00119322,46985.0,46984.0,1.45219623]
[1641050713652,0.00119322,46985.0,46984.0,1.47253751]
[1641050714251,0.00119322,46985.0,46984.0,1.43254548]
[1641050714453,0.00119322,46985.0,46984.0,1.45418998]
[1641050715453,0.00119322,46985.0,46984.0,1.47479803]
[1641050715653,0.00119322,46985.0,46984.0,1.45315353]
[1641050716499,0.00119322,46985.0,46984.0,1.47252246]
[1641050716800,0.00119322,46985.0,46984.0,1.45191441]
[1641050718100,0.00119322,46985.0,46984.0,1.47263499]
[1641050718599,0.00119322,46985.0,46984.0,1.47366716]
[1641050718799,0.00119322,46985.0,46984.0,1.45294658]
[1641050719501,0.00119322,46985.0,46984.0,1.47158854]
[1641050719699,0.00119322,46985.0,46984.0,1.45118744]
[1641050720654,0.00119322,46985.0,46984.0,1.47253635]
[1641050721556,0.00119322,46985.0,46984.0,1.49429906]
[1641050721753,0.00119322,46985.0,46984.0,1.45430819]
[1641050722654,0.00119322,46985.0,46984.0,1.45243437]
[1641050723554,0.00119322,46985.0,46984.0,1.47313184]
[1641050723801,0.00119322,46985.0,46984.0,1.45324295]
[1641050724603,0.00119322,46985.0,46984.0,1.4728782]
[1641050724803,0.00119322,46985.0,46984.0,1.45218073]
[1641050725604,0.00119322,46985.0,46984.0,1.47049695]
[1641050726407,0.00119322,46985.0,46984.0,1.43254548]
[1641050726609,0.00119322,46985.0,46984.0,1.45166182]
[1641050727655,0.00119322,46985.0,46984.0,1.47296477]
[1641050727854,0.00119322,46985.0,46984.0,1.45384843]
[1641050728756,0.00119322,46985.0,46984.0,1.45103938]
[1641050729555,0.00119322,46985.0,46984.0,1.4706889]
[1641050729756,0.00119322,46985.0,46984.0,1.452195]
[1641050730558,0.00902672,46988.0,46984.0,2.43361998]
[1641050730757,0.00902672,46988.0,46987.0,0.13833208]
[1641050730956,0.00902672,46988.0,46987.0,0.24010608]
[1641050731159,0.00902672,46988.0,46987.0,0.34010608]
[1641050731605,0.00902672,46988.0,46987.0,0.44010608]
[1641050731804,0.00902672,46988.0,46987.0,1.30434219]
[1641050732007,0.16304432,46992.0,46987.0,1.30434219]
[1641050732203,0.16304432,46992.0,46991.0,0.08513808]
[1641050732404,0.16304432,46992.0,46991.0,0.18513808]
[1641050732605,0.16304432,46992.0,46991.0,1.89196504]
[1641050733205,0.16304432,46992.0,46991.0,0.90770258]
[1641050733608,0.16304432,46992.0,46991.0,0.92658991]
[1641050733806,0.16304432,46992.0,46991.0,0.20402541]
[1641050734106,0.16304432,46992.0,46991.0,0.25722041]
[1641050734305,0.16304432,46992.0,46991.0,0.97959933]
[1641050734905,0.16304432,46992.0,46991.0,0.960712]
[1641050735856,0.16304432,46992.0,46991.0,0.98085378]
[1641050735857,0.1631056,46992.0,46991.0,0.98085378]
[1641050736657,0.1631056,46992.0,46991.0,1.00017856]
[1641050736859,0.1631056,46992.0,46991.0,0.25765786]
[1641050737859,0.1631056,46992.0,46991.0,0.23833308]
[1641050738260,0.1631056,46992.0,46991.0,0.96021757]
[1641050739604,0.1631056,46992.0,46991.0,0.97924194]
[1641050741202,0.1631056,46992.0,46991.0,1.31989194]
[1641050741404,0.1631056,46992.0,46991.0,1.34145144]
[1641050741603,0.1631056,46992.0,46991.0,1.32242707]
[1641050741903,0.1631056,46992.0,46991.0,1.32084228]
[1641050742744,0.1631056,46992.0,46991.0,1.34273352]
[1641050742954,0.1631056,46992.0,46991.0,1.32275881]
[1641050743648,0.1631056,46992.0,46991.0,0.60087432]
[1641050743845,0.1631056,46992.0,46991.0,0.043843]
[1641050744753,0.1631056,46992.0,46990.0,0.72178899]
[1641050745149,0.1631056,46992.0,46989.0,0.02182282]
[1641050745850,0.1631056,46992.0,46990.0,0.01840756]
[1641050746305,0.2695186,46992.0,46990.0,0.01840756]
[1641050746507,0.56122943,46992.0,46990.0,0.01840756]
[1641050746908,0.56122943,46992.0,46988.0,0.74196874]
[1641050747106,0.053208,46991.0,46988.0,0.74196874]
[1641050747808,0.053208,46991.0,46988.0,0.76332348]
[1641050748008,0.053208,46991.0,46988.0,0.74314373]
[1641050748810,0.053208,46991.0,46988.0,0.76429781]
[1641050749010,0.053208,46991.0,46988.0,0.74294307]
[1641050749410,0.00148086,46990.0,46988.0,0.74294307]
[1641050749813,0.00161286,46990.0,46988.0,0.76423833]
[1641050750050,0.00161286,46990.0,46989.0,0.34065]
[1641050750246,0.00161286,46990.0,46988.0,0.02129526]
[1641050750844,0.00161286,46990.0,46989.0,0.01907965]
[1641050751043,0.30095622,46990.0,46989.0,0.01907965]
[1641050752043,0.30095622,46990.0,46985.0,0.01917545]
[1641050752246,0.053207,46988.0,46985.0,0.74096444]
[1641050752447,0.053207,46988.0,46987.0,0.08513899]
[1641050757415,0.053207,46988.0,46987.0,0.13513899]
[1641050757859,0.053207,46988.0,46987.0,0.08513899]
[1641050763403,0.053207,46988.0,46987.0,0.13513899]
[1641050763600,0.00147958,46989.0,46987.0,0.47578899]
[1641050763800,0.00147958,46989.0,46988.0,0.14438599]
[1641050764100,0.00147958,46989.0,46988.0,0.4200386]
[1641050764302,0.00147958,46989.0,46988.0,0.4625386]
[1641050764500,0.00147958,46989.0,46988.0,0.7625386]
[1641050764900,0.00147958,46989.0,46988.0,1.48432759]
[1641050765149,0.00147958,46989.0,46988.0,1.22973046]
[1641050765747,0.00147958,46989.0,46988.0,1.35613121]
[1641050765949,0.00147958,46989.0,46988.0,1.37484487]
[1641050766148,0.00147958,46989.0,46988.0,1.35378939]
[1641050766548,0.00147958,46989.0,46988.0,1.36019343]
[1641050766950,0.00147958,46989.0,46988.0,1.37573836]
[1641050767151,0.00147958,46989.0,46988.0,1.3570247]
[1641050767651,0.00147958,46989.0,46988.0,1.0570247]
[1641050768649,0.00147958,46989.0,46988.0,1.89325308]
[1641050768896,0.00147958,46989.0,46988.0,0.20883496]
[1641050769101,0.00630198,46991.0,46988.0,0.25883496]
[1641050769396,0.00630198,46991.0,46990.0,0.209242]
[1641050769599,0.00630198,46991.0,46990.0,0.351742]